fUST/lending_fUST_20260429
["ID","MTS","AMOUNT","RATE_DAILY","PERIOD"]
[421329777,1777444246031,-151.0,0.00019915,2]
[421329778,1777444246041,-264.105833,0.00019915,2]
[421329779,1777444246050,-151.0,0.00019915,2]
[421329780,1777444246060,-264.105833,0.00019915,2]
[421329781,1777444246071,-151.0,0.00019915,2]
[421329782,1777444246082,-151.0,0.00019915,2]
[421329783,1777444246092,-264.105833,0.00019915,2]
[421329784,1777444246103,-151.0,0.00019915,2]
[421329785,1777444246113,-264.105833,0.00019915,2]
[421329786,1777444246123,-151.0,0.00019915,2]
[421329787,1777444246133,-151.0,0.00019915,2]
[421329788,1777444246143,-245.932124,0.00019915,2]
[421329789,1777444246152,-375.0,0.0001992,2]
[421329790,1777444246162,-38000.0,0.00019924,3]
[421329791,1777444246172,-151.0,0.00019924,2]
[421329792,1777444246181,-151.0,0.00019924,2]
[421329793,1777444246191,-774.752226,0.00019924,2]
[421329794,1777444246202,-774.752226,0.00019924,2]
[421329795,1777444246211,-774.752226,0.00019924,2]
[421329796,1777444246223,-774.752226,0.00019924,2]
[421329797,1777444246234,-151.0,0.00019924,2]
[421329798,1777444246243,-151.0,0.00019924,2]
[421329799,1777444246253,-285.45063,0.00019924,2]
[421329800,1777444246263,-379.517645,0.00019924,2]
[421329801,1777444246272,-285.45063,0.00019924,2]
[421329802,1777444246282,-379.517645,0.00019924,2]
[421329803,1777444246291,-285.45063,0.00019924,2]
[421329804,1777444246300,-379.517645,0.00019924,2]
[421329805,1777444246311,-285.45063,0.00019924,2]
[421329806,1777444246320,-151.0,0.00019924,2]
[421329807,1777444246330,-379.517645,0.00019924,2]
[421329808,1777444246340,-38000.0,0.00019932,3]
[421329809,1777444246349,-375.0,0.00019939,2]
[421329810,1777444246359,-375.0,0.00019972,2]
[421329811,1777444246368,-588.824592,0.00019972,2]
[421329812,1777444246378,-588.824592,0.00019972,2]
[421329813,1777444246388,-588.824592,0.00019972,2]
[421329814,1777444246398,-588.824592,0.00019972,2]
[421329815,1777444246407,-151.0,0.00019972,2]
[421329816,1777444246417,-151.0,0.00019972,2]
[421329817,1777444246427,-264.105833,0.00019972,2]
[421329818,1777444246437,-151.0,0.00019972,2]
[421329819,1777444246446,-264.105833,0.00019972,2]
[421329820,1777444246456,-151.0,0.00019972,2]
[421329821,1777444246465,-264.105833,0.00019972,2]
[421329822,1777444246475,-151.0,0.00019972,2]
[421329823,1777444246485,-264.105833,0.00019972,2]
[421329824,1777444246495,-151.0,0.00019972,2]
[421329825,1777444246504,-151.0,0.00019972,2]
[421329826,1777444246514,-500.0,0.00019973,2]
[421329827,1777444246524,-500.0,0.00019973,2]
[421329828,1777444246534,-500.70960663,0.00019973,2]
[421329829,1777444246544,-500.0,0.00019973,2]
[421329830,1777444246553,-500.0,0.00019973,2]
[421329831,1777444246563,-500.0,0.00019973,2]
[421329835,1777444246766,-500.0,0.00019973,2]
[421329836,1777444246776,-151.0,0.00019973,2]
[421329837,1777444246786,-151.0,0.00019973,2]
[421329838,1777444246796,-151.0,0.00019973,2]
[421329839,1777444246806,-1104.388414,0.00019973,2]
[421329840,1777444246815,-1104.388414,0.00019973,2]
[421329841,1777444246824,-1104.388414,0.00019973,2]
[421329842,1777444246834,-1104.388414,0.00019973,2]
[421329843,1777444246844,-231.164416,0.00019973,2]
[421329844,1777444246853,-231.164416,0.00019973,2]
[421329845,1777444246863,-231.164416,0.00019973,2]
[421329846,1777444246872,-231.164416,0.00019973,2]
[421329847,1777444246881,-169.326252,0.00019973,2]
[421329848,1777444246890,-169.326252,0.00019973,2]
[421329849,1777444246899,-169.326252,0.00019973,2]
[421329850,1777444246909,-169.326252,0.00019973,2]
[421329851,1777444246919,-151.0,0.00019973,2]
[421329852,1777444246928,-234.056952,0.00019973,2]
[421329853,1777444246938,-234.056952,0.00019973,2]
[421329854,1777444246947,-234.056952,0.00019973,2]
[421329855,1777444246957,-234.056952,0.00019973,2]
[421329856,1777444246967,-290.074909,0.00019973,2]
[421329857,1777444246976,-290.074909,0.00019973,2]
[421329858,1777444246986,-290.074909,0.00019973,2]
[421329859,1777444246996,-290.074909,0.00019973,2]
[421329860,1777444247006,-151.0,0.00019973,2]
[421329861,1777444247016,-151.0,0.00019973,2]
[421329862,1777444247026,-151.0,0.00019973,2]
[421329863,1777444247035,-151.0,0.00019973,2]
[421329864,1777444247045,-151.0,0.00019973,2]
[421329865,1777444247054,-109.0615683,0.00019973,2]
[421329866,1777444247582,-43.1245677,0.00019973,2]
[421329867,1777444247594,-151.0,0.00019973,2]
[421329868,1777444247604,-151.0,0.00019973,2]
[421329869,1777444247614,-375.0,0.00019978,2]
[421329870,1777444247625,-214.0,0.0001999,2]
[421329871,1777444247635,-1257.9594972,0.00019996,2]
[421329872,1777444247645,-344.59914465,0.00019996,2]
[421329873,1777444247657,-2849.94311707,0.00019996,2]
[421329874,1777444247668,-13992.83192378,0.00019996,2]
[421329875,1777444247678,-285.45063,0.00019996,2]
[421329876,1777444247688,-379.517645,0.00019996,2]
[421329877,1777444247698,-285.45063,0.00019996,2]
[421329878,1777444247708,-379.517645,0.00019996,2]
[421329879,1777444247718,-285.45063,0.00019996,2]
[421329880,1777444247728,-379.517645,0.00019996,2]
[421329881,1777444247737,-285.45063,0.00019996,2]
[421329882,1777444247747,-152.56312,0.00019996,2]
[421329883,1777444247756,-379.517645,0.00019996,2]
[421329884,1777444247766,-10533.62588766,0.0002,20]
[421329885,1777444247776,-155747.96032208,0.0002,2]
[421329886,1777444247788,-32225.84669772,0.0002,2]
[421329887,1777444247800,-18468.42925953,0.0002,2]
[421329888,1777444247818,-2653.23112551,0.0002,2]
[421329890,1777444249290,-189.85,8.507e-05,2]
[421329891,1777444249300,-253.13,8.66e-05,2]
[421329892,1777444249310,-789.23825907,0.00012824,7]
[421329893,1777444260199,4700.0,9.501e-05,7]
[421329894,1777444260444,300.0,9.501e-05,7]
[421329895,1777444261711,-151.0,8.696e-05,2]
[421329896,1777444261750,-500.0,8.856e-05,2]
[421329897,1777444261814,-336.35424257,8.856e-05,2]
[421329898,1777444290860,200.0,0.00021996,120]
[421329899,1777444291364,-651.0,8.767e-05,2]
[421329901,1777444351158,200.0,0.00022723,120]
[421329903,1777444405453,20537.8,0.00023287,120]
[421329905,1777444432686,203.41,9.059e-05,7]
[421329906,1777444435082,4496.59,9.501e-05,7]
[421329907,1777444435105,503.41,9.501e-05,7]
[421329908,1777444453978,36888.98,0.00023288,120]
[421329909,1777444514551,1097.0,0.00021035,120]
[421329910,1777444515879,1097.0,0.00022087,120]
[421329911,1777444517241,1097.0,0.00023192,120]
[421329912,1777444532872,555.0,0.00021115,120]
[421329913,1777444534301,555.0,0.0002217,120]
[421329914,1777444535551,555.0,0.00023279,120]
[421329915,1777444632818,1605.97195052,9.501e-05,7]
[421329916,1777444648073,2890.61804948,9.501e-05,7]
[421329917,1777444648096,2109.38195052,9.501e-05,7]
[421329919,1777444770688,200.0,0.00020102,120]
[421329922,1777444808992,658.0,0.00021061,120]
[421329923,1777444810516,658.0,0.00022114,120]
[421329924,1777444812200,658.0,0.0002322,120]
[421329927,1777444830502,200.0,0.00022704,120]
[421329928,1777444833931,333.0,0.00021133,120]
[421329929,1777444835410,333.0,0.0002219,120]
[421329931,1777444853243,2890.61804948,9.501e-05,7]
[421329932,1777444853268,2109.38195052,9.501e-05,7]
[421329933,1777444861241,1266.8661922,9.501e-05,7]
[421329936,1777444876065,1623.75185728,9.501e-05,7]
[421329937,1777444876091,3376.24814272,9.501e-05,7]
[421329967,1777444890462,200.0,0.00019032,120]
[421330009,1777445070706,200.0,0.00019454,120]
[421330014,1777445108698,395.0,0.00021075,120]
[421330015,1777445110199,395.0,0.00022128,120]
[421330016,1777445111442,395.0,0.00023235,120]
[421330040,1777445130705,200.0,0.00020292,120]
[421330041,1777445137891,200.0,0.00021143,120]
[421330042,1777445139577,200.0,0.000222,120]
[421330045,1777445229753,2197.62,0.00023288,120]
[421330046,1777445280305,1623.75185728,9.501e-05,7]
[421330047,1777445280333,3376.24814272,9.501e-05,7]
[421330049,1777445288596,214.68882022,9.501e-05,7]
[421330054,1777445303955,1409.06303706,9.501e-05,7]
[421330055,1777445304202,3590.93696294,9.501e-05,7]
[421330064,1777445409571,237.0,0.00021101,120]
[421330065,1777445410812,237.0,0.00022156,120]
[421330066,1777445412304,237.0,0.00023264,120]
[421330072,1777445432153,171.0,0.00021167,120]
[421330083,1777445432249,197.41,0.00023288,120]
[421330107,1777445432487,-300.0,7.695e-05,2]
[421330109,1777445432497,-1517.25880299,7.696e-05,2]
[421330122,1777445432650,-586.94081868,7.696e-05,2]
[421330125,1777445433505,171.0,0.00022226,120]
[421330134,1777445438855,-2895.80037833,7.696e-05,2]
[421330135,1777445438866,-528.0,7.696e-05,2]
[421330136,1777445438876,-469.14001621,7.774e-05,2]
[421330137,1777445438886,-200.0,7.853e-05,2]
[421330138,1777445438896,-388.99,8.247e-05,2]
[421330139,1777445438906,-598.0,8.284e-05,2]
[421330140,1777445438916,-500.0,8.284e-05,2]
[421330141,1777445438925,-500.0,8.284e-05,2]
[421330142,1777445438935,-500.0,8.284e-05,2]
[421330143,1777445438946,-500.0,8.284e-05,2]
[421330144,1777445438956,-500.0,8.284e-05,2]
[421330145,1777445438967,-500.0,8.284e-05,2]
[421330146,1777445438976,-500.0,8.284e-05,2]
[421330147,1777445438986,-500.0,8.284e-05,2]
[421330148,1777445438995,-500.0,8.284e-05,2]
[421330149,1777445439005,-500.0,8.284e-05,2]
[421330150,1777445439014,-500.0,8.284e-05,2]
[421330151,1777445439024,-500.0,8.284e-05,2]
[421330152,1777445439034,-500.0,8.284e-05,2]
[421330153,1777445439043,-500.0,8.284e-05,2]
[421330154,1777445439053,-500.0,8.284e-05,2]
[421330155,1777445439063,-500.0,8.284e-05,2]
[421330156,1777445439072,-500.0,8.284e-05,2]
[421330157,1777445439082,-500.0,8.284e-05,2]
[421330158,1777445439092,-500.0,8.284e-05,2]
[421330159,1777445439101,-500.0,8.284e-05,2]
[421330160,1777445439310,-500.0,8.284e-05,2]
[421330161,1777445439355,-500.0,8.284e-05,2]
[421330162,1777445439365,-500.0,8.284e-05,2]
[421330163,1777445439375,-500.0,8.284e-05,2]
[421330164,1777445439385,-332.90529418,8.284e-05,2]
[421330165,1777445439395,-500.0,8.284e-05,2]
[421330166,1777445439405,-500.0,8.284e-05,2]
[421330167,1777445439415,-500.0,8.284e-05,2]
[421330168,1777445439425,-500.0,8.284e-05,2]
[421330169,1777445439435,-500.0,8.284e-05,2]
[421330170,1777445439444,-500.0,8.284e-05,2]
[421330171,1777445439454,-500.0,8.284e-05,2]
[421330172,1777445439464,-500.0,8.284e-05,2]
[421330173,1777445439474,-500.0,8.284e-05,2]
[421330174,1777445439483,-500.0,8.284e-05,2]
[421330175,1777445439493,-451.63035863,8.284e-05,2]
[421330176,1777445439503,-500.0,8.284e-05,2]
[421330177,1777445439513,-500.0,8.284e-05,2]
[421330178,1777445439524,-500.0,8.284e-05,2]
[421330179,1777445439534,-500.0,8.284e-05,2]
[421330180,1777445439545,-500.0,8.284e-05,2]
[421330181,1777445439555,-353.54036874,8.284e-05,2]
[421330182,1777445439565,-500.0,8.284e-05,2]
[421330183,1777445439576,-500.0,8.284e-05,2]
[421330184,1777445439586,-500.0,8.284e-05,2]
[421330185,1777445439597,-500.0,8.284e-05,2]
[421330186,1777445439608,-500.0,8.284e-05,2]
[421330187,1777445439618,-500.0,8.284e-05,2]
[421330188,1777445439627,-500.0,8.284e-05,2]
[421330189,1777445439637,-500.0,8.284e-05,2]
[421330190,1777445439648,-500.0,8.284e-05,2]
[421330191,1777445439658,-500.0,8.284e-05,2]
[421330192,1777445439668,-500.0,8.284e-05,2]
[421330193,1777445439679,-500.0,8.284e-05,2]
[421330194,1777445439689,-500.0,8.284e-05,2]
[421330195,1777445439699,-500.0,8.284e-05,2]
[421330196,1777445439709,-500.0,8.284e-05,2]
[421330197,1777445439718,-500.0,8.284e-05,2]
[421330198,1777445439729,-500.0,8.284e-05,2]
[421330199,1777445439738,-500.0,8.284e-05,2]
[421330200,1777445439748,-500.0,8.284e-05,2]
[421330201,1777445439759,-500.0,8.284e-05,2]
[421330202,1777445439769,-500.0,8.284e-05,2]
[421330203,1777445439779,-500.0,8.284e-05,2]
[421330204,1777445439789,-500.0,8.284e-05,2]
[421330205,1777445439800,-500.0,8.284e-05,2]
[421330206,1777445439809,-500.0,8.284e-05,2]
[421330207,1777445439819,-500.0,8.284e-05,2]
[421330208,1777445439830,-500.0,8.284e-05,2]
[421330209,1777445439839,-500.0,8.284e-05,2]
[421330210,1777445439849,-500.0,8.284e-05,2]
[421330211,1777445439859,-500.0,8.284e-05,2]
[421330212,1777445439868,-500.0,8.284e-05,2]
[421330213,1777445439878,-500.0,8.284e-05,2]
[421330214,1777445439887,-179.8196653,8.284e-05,2]
[421330215,1777445439897,-500.0,8.284e-05,2]
[421330216,1777445439908,-595.63442156,8.284e-05,2]
[421330217,1777445439918,-356.24243257,8.286e-05,2]
[421330218,1777445439928,-500.0,8.286e-05,2]
[421330219,1777445439938,-155.0,8.288e-05,2]
[421330220,1777445439949,-300.0,8.291e-05,2]
[421330221,1777445439959,-300.0,8.291e-05,2]
[421330222,1777445439969,-300.0,8.291e-05,2]
[421330223,1777445439979,-300.0,8.291e-05,2]
[421330224,1777445439989,-300.0,8.291e-05,2]
[421330225,1777445439999,-300.0,8.291e-05,2]
[421330226,1777445440009,-300.0,8.291e-05,2]
[421330227,1777445440019,-300.0,8.291e-05,2]
[421330228,1777445440030,-300.0,8.291e-05,2]
[421330229,1777445440040,-300.0,8.291e-05,2]
[421330230,1777445440050,-300.0,8.291e-05,2]
[421330231,1777445440060,-300.0,8.291e-05,2]
[421330232,1777445440071,-300.0,8.291e-05,2]
[421330233,1777445440081,-300.0,8.291e-05,2]
[421330234,1777445440091,-300.0,8.291e-05,2]
[421330235,1777445440100,-420.0,8.465e-05,2]
[421330236,1777445440110,-600.0,9.213e-05,2]
[421330237,1777445440120,-587.0,9.311e-05,2]
[421330238,1777445440130,-151.0,9.564e-05,2]
[421330239,1777445440140,-553.58521913,9.774e-05,2]
[421330240,1777445440149,-720.0,0.00010134,2]
[421330241,1777445440159,-250.93973679,0.00010169,2]
[421330242,1777445440169,-428.0,0.00010242,2]
[421330243,1777445440179,-356.24243253,0.00010865,2]
[421330244,1777445440188,-864.0,0.00011147,2]
[421330245,1777445440198,-638.03042205,0.00011774,2]
[421330246,1777445440209,-151.0,0.00011835,2]
[421330247,1777445440219,-1000.0,0.00012262,2]
[421330248,1777445440230,-3703.3334821,0.000129,2]
[421330249,1777445440240,-3703.33348209,0.000129,2]
[421330250,1777445440251,-3703.33348209,0.000129,2]
[421330251,1777445440263,-1000.0,0.00013488,2]
[421330252,1777445440274,-244.0,0.00013488,2]
[421330253,1777445440284,-356.24243253,0.00013543,2]
[421330254,1777445440294,-500.0,0.00013698,2]
[421330255,1777445440304,-500.0,0.00013698,2]
[421330256,1777445440315,-500.0,0.00013698,2]
[421330257,1777445440326,-500.0,0.00013698,2]
[421330258,1777445440336,-500.0,0.00013698,2]
[421330259,1777445440346,-501.24141859,0.00013698,2]
[421330260,1777445440356,-500.0,0.00013698,2]
[421330261,1777445440366,-500.0,0.00013698,2]
[421330262,1777445440375,-503.91449587,0.00013698,2]
[421330263,1777445440386,-500.0,0.00013698,2]
[421330264,1777445440397,-500.0,0.00013698,2]
[421330265,1777445440407,-500.0,0.00013698,2]
[421330266,1777445440419,-576.84109015,0.00013698,2]
[421330267,1777445440429,-500.0,0.00013698,2]
[421330268,1777445440441,-500.0,0.00013698,2]
[421330269,1777445440451,-500.0,0.00013698,2]
[421330270,1777445440461,-500.0,0.00013698,2]
[421330271,1777445440470,-566.84817428,0.00013698,2]
[421330272,1777445440480,-500.0,0.00013698,2]
[421330273,1777445440490,-500.0,0.00013698,2]
[421330274,1777445440500,-500.0,0.00013698,2]
[421330275,1777445440510,-527.05,0.00013698,2]
[421330276,1777445440519,-527.05,0.00013698,2]
[421330277,1777445440529,-527.05,0.00013698,2]
[421330278,1777445440539,-527.05,0.00013698,2]
[421330279,1777445440549,-527.05,0.00013698,2]
[421330280,1777445440559,-527.05,0.00013698,2]
[421330281,1777445440569,-527.05,0.00013698,2]
[421330282,1777445440578,-771.16,0.00013698,2]
[421330283,1777445440588,-771.16,0.00013698,2]
[421330284,1777445440598,-771.16,0.00013698,2]
[421330285,1777445440607,-771.16,0.00013698,2]
[421330286,1777445440617,-771.16,0.00013698,2]
[421330287,1777445440627,-500.0,0.00013698,2]
[421330288,1777445440636,-500.0,0.00013698,2]
[421330289,1777445440646,-500.0,0.00013698,2]
[421330291,1777445440655,-500.0,0.00013698,2]
[421330292,1777445440664,-500.0,0.00013698,2]
[421330293,1777445440674,-500.0,0.00013698,2]
[421330294,1777445440684,-500.0,0.00013698,2]
[421330295,1777445440694,-500.0,0.00013698,2]
[421330296,1777445440704,-500.0,0.00013698,2]
[421330297,1777445440714,-500.0,0.00013698,2]
[421330298,1777445440725,-500.0,0.00013698,2]
[421330299,1777445440735,-1000.0,0.00013699,2]
[421330300,1777445440745,-390.22974614,0.00013699,2]
[421330301,1777445440755,-722.47562497,0.00013774,2]
[421330302,1777445440765,-500.0,0.00014132,2]
[421330303,1777445440775,-500.0,0.00014132,2]
[421330304,1777445440785,-500.0,0.00014132,2]
[421330305,1777445440796,-500.0,0.00014132,2]
[421330306,1777445440806,-500.0,0.00014132,2]
[421330307,1777445440816,-602.85803275,0.00014132,2]
[421330308,1777445440826,-401.80831075,0.00014132,2]
[421330309,1777445440836,-500.0,0.00014132,2]
[421330310,1777445440847,-500.0,0.00014132,2]
[421330311,1777445440857,-500.0,0.00014132,2]
[421330312,1777445440867,-500.0,0.00014132,2]
[421330313,1777445440877,-500.0,0.00014132,2]
[421330314,1777445440887,-500.0,0.00014132,2]
[421330315,1777445440897,-500.0,0.00014132,2]
[421330316,1777445440907,-500.0,0.00014132,2]
[421330317,1777445440917,-500.0,0.00014132,2]
[421330318,1777445440927,-500.0,0.00014132,2]
[421330319,1777445440936,-3703.33348209,0.00014133,2]
[421330320,1777445440947,-152.0,0.00014523,7]
[421330321,1777445440957,-152.0,0.00014523,7]
[421330322,1777445440967,-152.0,0.00014537,7]
[421330323,1777445440979,-152.0,0.00014537,7]
[421330324,1777445440988,-169.15226597,0.00014702,2]
[421330325,1777445440999,-1000.0,0.00014837,2]
[421330326,1777445441010,-492.0,0.00014837,2]
[421330327,1777445441021,-500.0,0.000151,2]
[421330329,1777445441031,-500.0,0.000152,2]
[421330330,1777445441042,-180.0,0.00015616,2]
[421330331,1777445441052,-806.92082789,0.00015774,2]
[421330332,1777445441062,-259.80880195,0.00015889,2]
[421330333,1777445441072,-500.0,0.0001589,2]
[421330334,1777445441083,-500.0,0.0001589,2]
[421330335,1777445441093,-500.0,0.0001589,2]
[421330336,1777445441103,-500.0,0.0001589,2]
[421330337,1777445441113,-500.0,0.0001589,2]
[421330338,1777445441123,-500.0,0.0001589,2]
[421330339,1777445441132,-500.0,0.000159,2]
[421330340,1777445441142,-500.0,0.00016,2]
[421330341,1777445441152,-356.24243253,0.00016222,2]
[421330342,1777445441162,-527.05,0.0001632,2]
[421330343,1777445441172,-771.16,0.0001632,2]
[421330344,1777445441183,-500.0,0.0001632,2]
[421330345,1777445441192,-1000.0,0.00016321,2]
[421330346,1777445441202,-791.0,0.00016321,2]
[421330347,1777445441212,-151.0,0.000164,2]
[421330348,1777445441222,-500.0,0.00016421,2]
[421330349,1777445441233,-5000.0,0.00016437,2]
[421330350,1777445441243,-527.05,0.00016438,2]
[421330351,1777445441253,-527.05,0.00016438,2]
[421330352,1777445441264,-527.05,0.00016438,2]
[421330353,1777445441274,-527.05,0.00016438,2]
[421330354,1777445441284,-527.05,0.00016438,2]
[421330355,1777445441293,-771.16,0.00016438,2]
[421330356,1777445441303,-771.16,0.00016438,2]
[421330357,1777445441314,-771.16,0.00016438,2]
[421330358,1777445441323,-771.16,0.00016438,2]
[421330359,1777445441333,-771.16,0.00016438,2]
[421330360,1777445441343,-500.0,0.00016438,2]
[421330361,1777445441354,-500.0,0.00016438,2]
[421330362,1777445441363,-500.0,0.00016438,2]
[421330363,1777445441373,-500.0,0.00016438,2]
[421330364,1777445441383,-500.0,0.00016438,2]
[421330365,1777445441393,-50103.78,0.00016438,2]
[421330366,1777445441569,-50103.79,0.00016438,2]
[421330367,1777445441580,-166.05,0.00016438,2]
[421330368,1777445441591,-166.05,0.00016438,2]
[421330369,1777445441602,-160.0,0.00016762,2]
[421330370,1777445441612,-160.0,0.00016762,2]
[421330371,1777445441624,-160.0,0.00016762,2]
[421330372,1777445441634,-169.8138534,0.000168,2]
[421330373,1777445441644,-1343.52359582,0.000168,2]
[421330374,1777445441655,-151.0,0.000168,2]
[421330375,1777445441665,-1343.52359582,0.000169,2]
[421330376,1777445441675,-500.0,0.000169,2]
[421330377,1777445441686,-1343.52359582,0.000171,2]
[421330378,1777445441697,-151.0,0.000171,2]
[421330379,1777445441708,-500.0,0.000171,2]
[421330380,1777445441719,-1343.52359582,0.000173,2]
[421330381,1777445441730,-229.83432848,0.00017355,2]
[421330382,1777445441741,-1343.52359582,0.000174,2]
[421330383,1777445441750,-151.0,0.000175,2]
[421330384,1777445441760,-771.16,0.0001767,2]
[421330385,1777445441770,-239.0,0.00017671,3]
[421330386,1777445441780,-891.36603081,0.00017774,2]
[421330387,1777445441791,-151.0,0.000178,2]
[421330388,1777445441801,-151.0,0.000179,2]
[421330389,1777445441811,-1000.0,0.00017953,2]
[421330390,1777445441820,-1000.0,0.00017953,2]
[421330391,1777445441830,-500.0,0.00018,2]
[421330392,1777445441840,-228634.01117525,0.00018032,2]
[421330393,1777445441850,-527.05,0.0001804,2]
[421330394,1777445441862,-500.0,0.0001804,2]
[421330395,1777445441872,-151.5,0.00018041,2]
[421330396,1777445441881,-151.5,0.00018041,2]
[421330397,1777445441892,-151.5,0.00018041,2]
[421330398,1777445441901,-151.5,0.00018041,2]
[421330399,1777445441911,-202.74469513,0.00018041,2]
[421330400,1777445441921,-151.0,0.000182,2]
[421330401,1777445441932,-151.0,0.000182,2]
[421330402,1777445441942,-151.5,0.00018315,2]
[421330403,1777445441951,-822.0,0.000184,2]
[421330404,1777445441960,-822.0,0.000184,2]
[421330405,1777445441970,-822.0,0.000184,2]
[421330406,1777445441979,-822.0,0.000184,2]
[421330407,1777445441989,-1358.9,0.00018442,2]
[421330408,1777445441998,-1358.9,0.00018584,2]
[421330409,1777445442008,-163.97579235,0.00018589,2]
[421330410,1777445442018,-151.0,0.000186,2]
[421330411,1777445442028,-151.0,0.000186,2]
[421330412,1777445442038,-160.0,0.0001862,2]
[421330413,1777445442047,-1238.770611,0.0001862,2]
[421330414,1777445442057,-2317.541223,0.0001862,2]
[421330415,1777445442067,-500.0,0.00018642,2]
[421330416,1777445442076,-771.16,0.0001869,2]
[421330417,1777445442086,-151.0,0.000187,2]
[421330418,1777445442095,-822.0,0.00018704,2]
[421330419,1777445442105,-1358.9,0.00018725,2]
[421330420,1777445442115,-1358.9,0.00018867,2]
[421330421,1777445442125,-151.0,0.000189,2]
[421330422,1777445442135,-151.0,0.000189,2]
[421330423,1777445442145,-356.24243253,0.000189,2]
[421330424,1777445442154,-527.05,0.00018998,2]
[421330425,1777445442164,-527.05,0.00018998,2]
[421330426,1777445442174,-771.16,0.00018998,2]
[421330427,1777445442184,-500.0,0.00018998,2]
[421330428,1777445442195,-500.0,0.00018998,2]
[421330429,1777445442205,-500.0,0.00018999,2]
[421330430,1777445442214,-500.0,0.00018999,2]
[421330431,1777445442224,-500.0,0.00018999,2]
[421330432,1777445442233,-500.0,0.00018999,2]
[421330433,1777445442242,-500.0,0.00018999,2]
[421330434,1777445442252,-500.0,0.00018999,2]
[421330435,1777445442261,-158.4635,0.00018999,2]
[421330436,1777445442271,-158.4635,0.00018999,2]
[421330437,1777445442280,-158.4635,0.00018999,2]
[421330438,1777445442291,-158.4635,0.00018999,2]
[421330439,1777445442300,-151.0,0.00018999,2]
[421330440,1777445442311,-151.0,0.00018999,2]
[421330441,1777445442321,-151.0,0.00018999,2]
[421330442,1777445442331,-152.267868,0.00018999,2]
[421330443,1777445442341,-222.830492,0.00018999,2]
[421330444,1777445442351,-222.830492,0.00018999,2]
[421330445,1777445442361,-222.830492,0.00018999,2]
[421330446,1777445442371,-222.830492,0.00018999,2]
[421330447,1777445442381,-151.0,0.00018999,2]
[421330448,1777445442391,-151.0,0.00018999,2]
[421330449,1777445442401,-2005.148986,0.00018999,2]
[421330450,1777445442411,-2005.148986,0.00018999,2]
[421330451,1777445442421,-2005.148986,0.00018999,2]
[421330452,1777445442430,-2005.148986,0.00018999,2]
[421330453,1777445442440,-171.562634,0.00018999,2]
[421330454,1777445442451,-171.562634,0.00018999,2]
[421330455,1777445442462,-171.562634,0.00018999,2]
[421330456,1777445442471,-171.562634,0.00018999,2]
[421330457,1777445442482,-527.05,0.00018999,2]
[421330458,1777445442492,-527.05,0.00018999,2]
[421330459,1777445442503,-527.05,0.00018999,2]
[421330460,1777445442514,-527.05,0.00018999,2]
[421330461,1777445442536,-527.05,0.00018999,2]
[421330462,1777445442558,-527.05,0.00018999,2]
[421330463,1777445442582,-527.05,0.00018999,2]
[421330464,1777445442605,-527.18973496,0.00018999,2]
[421330465,1777445442628,-571.877334,0.00018999,2]
[421330466,1777445442648,-571.877334,0.00018999,2]